lending/lending_fUSD_20250224
["ID","MTS","AMOUNT","RATE_DAILY","PERIOD"]
[354281408,1740393055283,-13481.6,0.00016438,2]
[354281409,1740393055294,-13481.6,0.00016438,2]
[354281410,1740393055303,-523.34,0.00016438,2]
[354281411,1740393055313,-851.1318,0.00016438,2]
[354281412,1740393055323,-13481.6,0.00016438,2]
[354281413,1740393055332,-13481.6,0.00016438,2]
[354281414,1740393055341,-851.1318,0.00016438,2]
[354281415,1740393055351,-13481.6,0.00016438,2]
[354281416,1740393055361,-851.1318,0.00016438,2]
[354281417,1740393055370,-13481.6,0.00016438,2]
[354281418,1740393055380,-13481.6,0.00016438,2]
[354281419,1740393055389,-13481.6,0.00016438,2]
[354281420,1740393055398,-151.0,0.00016438,2]
[354281421,1740393055407,-13481.6,0.00016438,2]
[354281422,1740393055619,-151.0,0.00016438,2]
[354281423,1740393055630,-13481.6,0.00016438,2]
[354281424,1740393055639,-151.0,0.00016438,2]
[354281425,1740393055648,-13481.8,0.00016438,2]
[354281426,1740393055657,-1888.7,0.00016438,2]
[354281427,1740393055667,-151.0,0.00016438,2]
[354281428,1740393055676,-887.15,0.00016438,2]
[354281429,1740393055686,-561.68,0.00016438,2]
[354281430,1740393055695,-851.1318,0.00016438,2]
[354281431,1740393055705,-851.1318,0.00016438,2]
[354281432,1740393055714,-851.1318,0.00016438,2]
[354281433,1740393055723,-500.0,0.00016438,2]
[354281434,1740393055733,-1352.31,0.00016438,2]
[354281435,1740393055742,-1893.25,0.00016438,2]
[354281436,1740393055751,-1229.83,0.00016438,2]
[354281437,1740393055762,-500.0,0.00016438,2]
[354281438,1740393055771,-1592.71,0.00016438,2]
[354281439,1740393055781,-2122.57,0.00016438,2]
[354281440,1740393055791,-3181.44,0.00016438,2]
[354281441,1740393055801,-1563.39,0.00016438,2]
[354281442,1740393055810,-500.0,0.00016438,2]
[354281443,1740393055820,-500.0,0.00016438,2]
[354281444,1740393055830,-500.0,0.00016438,2]
[354281445,1740393055843,-931.35,0.00016438,2]
[354281446,1740393055853,-1364.19,0.00016438,2]
[354281447,1740393055862,-1399.69,0.00016438,2]
[354281448,1740393055872,-947.59,0.00016438,2]
[354281449,1740393055882,-1158.15,0.00016438,2]
[354281450,1740393055891,-1055.82,0.00016438,2]
[354281451,1740393055900,-1335.01,0.00016438,2]
[354281452,1740393055910,-205.32774182,0.00016438,2]
[354281453,1740393055920,-1743.38,0.00016438,2]
[354281454,1740393055929,-500.0,0.00016438,2]
[354281455,1740393055938,-154.647456,0.00016438,2]
[354281456,1740393055947,-1124.16,0.00016438,2]
[354281457,1740393055956,-1245.15,0.00016438,2]
[354281458,1740393055965,-862.87,0.00016438,2]
[354281459,1740393055975,-737.22,0.00016438,2]
[354281460,1740393055984,-3379.84,0.00016438,2]
[354281461,1740393055993,-2190.52,0.00016438,2]
[354281462,1740393056002,-500.0,0.00016438,2]
[354281463,1740393056011,-1993.18,0.00016438,2]
[354281464,1740393056020,-2255.32,0.00016438,2]
[354281465,1740393056029,-500.0,0.00016438,2]
[354281466,1740393056039,-2112.38,0.00016438,2]
[354281467,1740393056047,-1338.87,0.00016438,2]
[354281468,1740393056057,-1406.66,0.00016438,2]
[354281469,1740393056066,-511.28,0.00016438,2]
[354281470,1740393056075,-500.0,0.00016438,2]
[354281471,1740393056084,-1163.78,0.00016438,2]
[354281472,1740393056093,-899.89,0.00016438,2]
[354281473,1740393056103,-153.786354,0.00016438,2]
[354281474,1740393056113,-2575.6,0.00016438,2]
[354281475,1740393056123,-500.0,0.00016438,7]
[354281476,1740393056132,-500.0,0.00016438,2]
[354281477,1740393056143,-1931.36,0.00016438,2]
[354281478,1740393056152,-651.74,0.00016438,2]
[354281479,1740393056161,-500.0,0.00016438,2]
[354281480,1740393056170,-3875.26,0.00016438,2]
[354281481,1740393056180,-714.88,0.00016438,2]
[354281482,1740393056190,-500.0,0.00016438,2]
[354281483,1740393056200,-4627.1,0.00016438,2]
[354281484,1740393056210,-502.59093707,0.00016438,2]
[354281485,1740393056220,-2331.1,0.00016438,2]
[354281486,1740393056230,-794.55,0.00016438,2]
[354281487,1740393056239,-811.87,0.00016438,2]
[354281488,1740393056248,-525.36212926,0.00016438,2]
[354281489,1740393056257,-1360.35,0.00016438,2]
[354281490,1740393056266,-757.29,0.00016438,2]
[354281491,1740393056275,-500.0,0.00016438,2]
[354281492,1740393056285,-500.0,0.00016438,2]
[354281493,1740393056297,-500.0,0.00016438,2]
[354281494,1740393056306,-500.0,0.00016438,2]
[354281495,1740393056315,-500.0,0.00016438,2]
[354281496,1740393056325,-1905.52,0.00016438,2]
[354281497,1740393056335,-1832.68,0.00016438,2]
[354281498,1740393056344,-500.0,0.00016438,2]
[354281499,1740393056353,-1012.51,0.00016438,2]
[354281500,1740393056363,-500.0,0.00016438,2]
[354281501,1740393056372,-500.0,0.00016438,2]
[354281502,1740393056381,-500.0,0.00016438,2]
[354281503,1740393056391,-500.0,0.00016438,2]
[354281504,1740393056400,-500.0,0.00016438,2]
[354281505,1740393056409,-1130.11,0.00016438,2]
[354281506,1740393056419,-500.0,0.00016438,2]
[354281507,1740393056429,-500.0,0.00016438,2]
[354281508,1740393056438,-582.31766701,0.00016438,2]
[354281509,1740393056447,-2153.01,0.00016438,2]
[354281510,1740393056457,-151.0,0.00016438,2]
[354281511,1740393056466,-151.0,0.00016438,2]
[354281512,1740393056475,-151.0,0.00016438,2]
[354281513,1740393056484,-151.0,0.00016438,2]
[354281514,1740393056493,-500.0,0.00016438,2]
[354281515,1740393056503,-500.0,0.00016438,2]
[354281516,1740393056511,-1435.16,0.00016438,2]
[354281517,1740393056520,-151.0,0.00016438,2]
[354281518,1740393056530,-151.0,0.00016438,2]
[354281519,1740393056539,-151.0,0.00016438,2]
[354281520,1740393056548,-2176.8,0.00016438,2]
[354281521,1740393056557,-505.82033068,0.00016438,2]
[354281522,1740393056566,-151.0,0.00016438,2]
[354281523,1740393056576,-500.0,0.00016438,2]
[354281524,1740393056585,-500.0,0.00016438,2]
[354281525,1740393056595,-1895.66,0.00016438,2]
[354281526,1740393056604,-683.14,0.00016438,2]
[354281527,1740393056613,-500.0,0.00016438,2]
[354281528,1740393056622,-500.0,0.00016438,2]
[354281529,1740393056632,-500.0,0.00016438,2]
[354281530,1740393056641,-1239.34,0.00016438,2]
[354281531,1740393056650,-502.17861513,0.00016438,2]
[354281532,1740393056660,-2117.99,0.00016438,2]
[354281533,1740393056669,-2225.26,0.00016438,2]
[354281534,1740393056679,-312.393513,0.00016438,2]
[354281535,1740393056688,-312.393513,0.00016438,2]
[354281536,1740393056697,-312.393513,0.00016438,2]
[354281537,1740393056706,-312.393513,0.00016438,2]
[354281538,1740393056715,-621.00628,0.00016438,2]
[354281539,1740393056725,-354.38734119,0.00016438,2]
[354281540,1740393056735,-1435.64,0.00016438,2]
[354281541,1740393056744,-876.4,0.00016438,2]
[354281542,1740393056753,-312.393513,0.00016438,2]
[354281543,1740393056763,-1250.73,0.00016438,2]
[354281544,1740393056772,-312.393513,0.00016438,2]
[354281545,1740393056782,-1238.73,0.00016438,2]
[354281546,1740393056792,-312.393513,0.00016438,2]
[354281547,1740393056802,-312.393513,0.00016438,2]
[354281548,1740393056812,-500.0,0.00016438,2]
[354281549,1740393056821,-500.0,0.00016438,2]
[354281550,1740393056833,-151.0,0.00016438,2]
[354281551,1740393056844,-151.0,0.00016438,2]
[354281552,1740393056854,-1000.0,0.00016438,6]
[354281553,1740393056863,-151.0,0.00016438,2]
[354281554,1740393056875,-1448.82,0.00016438,2]
[354281555,1740393056885,-500.0,0.00016438,2]
[354281556,1740393056895,-504.1807774,0.00016438,2]
[354281557,1740393056905,-500.0,0.00016438,2]
[354281558,1740393056916,-500.0,0.00016438,2]
[354281559,1740393056926,-1222.74,0.00016438,2]
[354281560,1740393056937,-500.0,0.00016438,2]
[354281561,1740393056947,-2133.06,0.00016438,2]
[354281562,1740393056957,-500.0,0.00016438,2]
[354281563,1740393056967,-500.0,0.00016438,2]
[354281564,1740393056976,-902.39,0.00016438,2]
[354281565,1740393056986,-500.0,0.00016438,2]
[354281566,1740393056995,-1714.23,0.00016438,2]
[354281567,1740393057005,-2952.34,0.00016438,2]
[354281568,1740393057014,-500.0,0.00016438,2]
[354281569,1740393057024,-637.55,0.00016438,2]
[354281570,1740393057034,-455.827672,0.00016438,2]
[354281571,1740393057043,-455.827672,0.00016438,2]
[354281572,1740393057052,-455.827672,0.00016438,2]
[354281573,1740393057061,-455.827672,0.00016438,2]
[354281574,1740393057071,-502.40453908,0.00016438,2]
[354281575,1740393057080,-1345.12,0.00016438,2]
[354281576,1740393057089,-503.85454401,0.00016438,2]
[354281577,1740393057099,-500.0,0.00016438,2]
[354281578,1740393057109,-1346.53,0.00016438,2]
[354281579,1740393057118,-389.92932064,0.00016438,2]
[354281580,1740393057127,-455.827672,0.00016438,2]
[354281581,1740393057138,-455.827672,0.00016438,2]
[354281582,1740393057148,-500.0,0.00016438,2]
[354281583,1740393057157,-1153.09,0.00016438,2]
[354281584,1740393057167,-455.827672,0.00016438,2]
[354281585,1740393057176,-709.856055,0.00016438,2]
[354281586,1740393057185,-455.827672,0.00016438,2]
[354281587,1740393057195,-500.0,0.00016438,2]
[354281588,1740393057204,-709.856055,0.00016438,2]
[354281589,1740393057214,-1050.72,0.00016438,2]
[354281590,1740393057223,-500.0,0.00016438,2]
[354281591,1740393057232,-709.856055,0.00016438,2]
[354281592,1740393057242,-1549.23,0.00016438,2]
[354281593,1740393057251,-709.856055,0.00016438,2]
[354281594,1740393057260,-500.0,0.00016438,2]
[354281595,1740393057269,-500.0,0.00016438,2]
[354281596,1740393057279,-709.856055,0.00016438,2]
[354281597,1740393057288,-709.856055,0.00016438,2]
[354281598,1740393057297,-709.856055,0.00016438,2]
[354281599,1740393057307,-709.856055,0.00016438,2]
[354281600,1740393057316,-2116.78,0.00016438,2]
[354281601,1740393057325,-1323.73,0.00016438,2]
[354281602,1740393057334,-968.02,0.00016438,2]
[354281603,1740393057343,-502.03853482,0.00016438,2]
[354281604,1740393057353,-500.0,0.00016438,2]
[354281605,1740393057362,-1976.05,0.00016438,2]
[354281606,1740393057371,-2709.27,0.00016438,2]
[354281607,1740393057381,-500.0,0.00016438,2]
[354281608,1740393057390,-500.0,0.00016438,2]
[354281609,1740393057399,-500.0,0.00016438,2]
[354281610,1740393057409,-500.0,0.00016438,2]
[354281611,1740393057418,-1417.13,0.00016438,2]
[354281612,1740393057427,-500.0,0.00016438,2]
[354281613,1740393057436,-649.11,0.00016438,2]
[354281614,1740393057445,-501.96117436,0.00016438,2]
[354281615,1740393057454,-500.0,0.00016438,2]
[354281616,1740393057464,-500.0,0.00016438,2]
[354281617,1740393057473,-500.0,0.00016438,2]
[354281618,1740393057483,-500.0,0.00016438,2]
[354281619,1740393057492,-500.0,0.00016438,2]
[354281620,1740393057501,-500.0,0.00016438,2]
[354281621,1740393057511,-501.90630167,0.00016438,2]
[354281622,1740393057520,-517.98,0.00016438,2]
[354281623,1740393057529,-504.36723991,0.00016438,2]
[354281624,1740393057540,-1383.1,0.00016438,2]
[354281625,1740393057551,-639.53,0.00016438,2]
[354281626,1740393057560,-575.9,0.00016438,2]
[354281627,1740393057570,-2137.13,0.00016438,2]
[354281628,1740393057579,-1329.85,0.00016438,2]
[354281629,1740393057592,-2522.02,0.00016438,2]
[354281630,1740393057602,-418.45902136,0.00016438,2]
[354281631,1740393057611,-500.0,0.00016438,2]
[354281632,1740393057621,-1057.9,0.00016438,2]
[354281633,1740393057631,-500.0,0.00016438,2]
[354281634,1740393057641,-500.0,0.00016438,2]
[354281635,1740393057650,-2173.78,0.00016438,2]
[354281636,1740393057660,-500.0,0.00016438,2]
[354281637,1740393057669,-500.0,0.00016438,2]
[354281638,1740393057678,-6517.68,0.00016438,2]
[354281639,1740393057688,-500.0,0.00016438,2]
[354281640,1740393057697,-1162.71,0.00016438,2]
[354281641,1740393057706,-1536.77,0.00016438,2]
[354281642,1740393057715,-500.0,0.00016438,2]
[354281643,1740393057725,-150.02,0.00016438,2]
[354281644,1740393057734,-173.949018,0.00016453,2]
[354281645,1740393057744,-175.004175,0.00016453,2]
[354281646,1740393057754,-1000.0,0.00016463,2]
[354281647,1740393057764,-174.71633812,0.00016466,2]
[354281648,1740393057774,-1500.000001,0.000165,2]
[354281649,1740393057783,-206.19411432,0.000165,2]
[354281650,1740393057795,-12150.87825209,0.000165,2]
[354281651,1740393057804,-1777.2337478,0.00016509,2]
[354281652,1740393057813,-636.3523501,0.00016509,2]
[354281653,1740393057823,-163.1750547,0.00016509,2]
[354281654,1740393057837,-610.02,0.0001652,7]
[354281655,1740393057850,-151.0,0.0001652,2]
[354281656,1740393057860,-151.0,0.0001652,2]
[354281657,1740393057870,-151.0,0.0001652,2]
[354281658,1740393057879,-151.0,0.0001652,2]
[354281659,1740393057940,-505.88759615,0.0001652,2]
[354281660,1740393057949,-500.0,0.0001652,2]
[354281661,1740393057958,-501.08,0.0001652,2]
[354281662,1740393057967,-500.0,0.0001652,2]
[354281663,1740393057976,-500.0,0.0001652,2]
[354281664,1740393057986,-621.62256458,0.0001652,2]
[354281665,1740393057995,-151.0,0.0001652,2]
[354281666,1740393058004,-500.0,0.0001652,2]
[354281667,1740393058014,-500.0,0.0001652,2]
[354281668,1740393058025,-505.61713068,0.0001652,2]
[354281669,1740393058034,-500.0,0.0001652,2]
[354281670,1740393058044,-500.0,0.0001652,2]
[354281671,1740393058053,-500.0,0.0001652,2]
[354281672,1740393058062,-505.18774637,0.0001652,2]
[354281673,1740393058071,-500.0,0.0001652,2]
[354281674,1740393058080,-500.0,0.0001652,2]
[354281675,1740393058090,-500.0,0.0001652,2]
[354281676,1740393058099,-405.69288014,0.0001652,2]
[354281677,1740393058108,-500.0,0.0001652,2]
[354281678,1740393058117,-500.0,0.0001652,2]
[354281679,1740393058126,-171.901977,0.0001652,2]
[354281680,1740393058135,-500.0,0.0001652,2]
[354281681,1740393058145,-171.901977,0.0001652,2]
[354281682,1740393058154,-500.0,0.0001652,2]
[354281683,1740393058163,-151.0,0.0001652,2]
[354281684,1740393058172,-500.0,0.0001652,2]
[354281685,1740393058181,-500.0,0.0001652,2]
[354281686,1740393058189,-236.744422,0.0001652,2]
[354281687,1740393058198,-500.0,0.0001652,2]
[354281688,1740393058207,-500.0,0.0001652,2]
[354281689,1740393058216,-500.0,0.0001652,2]
[354281690,1740393058225,-200.976492,0.0001652,2]
[354281691,1740393058233,-500.0,0.0001652,2]
[354281692,1740393058243,-251.5136,0.0001652,2]
[354281693,1740393058252,-200.976492,0.0001652,2]
[354281694,1740393058261,-500.0,0.0001652,2]
[354281695,1740393058270,-633.42170548,0.0001652,2]
[354281696,1740393058279,-500.0,0.0001652,2]
[354281697,1740393058288,-500.0,0.0001652,2]
[354281698,1740393058298,-507.31753736,0.0001652,2]
[354281699,1740393058309,-500.0,0.0001652,2]
[354281700,1740393058318,-504.88186403,0.0001652,2]
[354281701,1740393058327,-310.7782027,0.0001652,2]
[354281702,1740393058337,-500.0,0.0001652,2]
[354281703,1740393058347,-217.44237403,0.0001652,2]
[354281704,1740393058356,-500.0,0.0001652,2]
[354281705,1740393058366,-500.0,0.0001652,2]
[354281706,1740393058375,-571.88995804,0.0001652,2]
[354281707,1740393058384,-500.0,0.0001652,2]
[354281708,1740393058393,-151.0,0.0001652,2]
[354281709,1740393058402,-151.0,0.0001652,2]
[354281710,1740393058411,-500.0,0.0001652,2]
[354281711,1740393058420,-513.04,0.0001652,2]
[354281712,1740393058429,-500.0,0.0001652,2]
[354281713,1740393058439,-500.0,0.0001652,2]
[354281714,1740393058448,-500.0,0.0001652,2]
[354281715,1740393058457,-424.66813149,0.0001652,2]
[354281716,1740393058467,-500.0,0.0001652,2]
[354281717,1740393058476,-705.82,0.0001652,2]
[354281718,1740393058485,-500.0,0.0001652,2]
[354281719,1740393058494,-500.0,0.0001652,2]
[354281720,1740393058503,-500.0,0.0001652,2]
[354281721,1740393058512,-223.368467,0.0001652,2]
[354281722,1740393058521,-500.0,0.0001652,2]
[354281723,1740393058530,-500.0,0.0001652,2]
[354281724,1740393058539,-500.0,0.0001652,2]
[354281725,1740393058549,-500.0,0.0001652,2]
[354281726,1740393058558,-588.66818724,0.0001652,2]
[354281727,1740393058567,-500.0,0.0001652,2]
[354281728,1740393058576,-568.69,0.0001652,2]
[354281729,1740393058585,-500.0,0.0001652,2]
[354281730,1740393058594,-500.0,0.0001652,2]
[354281731,1740393058603,-500.0,0.0001652,2]
[354281732,1740393058612,-500.0,0.0001652,2]
[354281733,1740393058621,-500.0,0.0001652,2]
[354281734,1740393058630,-500.0,0.0001652,2]
[354281735,1740393058639,-500.0,0.0001652,2]
[354281736,1740393058648,-500.0,0.0001652,2]
[354281737,1740393058657,-500.0,0.0001652,2]
[354281738,1740393058666,-500.0,0.0001652,2]
[354281739,1740393058675,-500.0,0.0001652,2]
[354281740,1740393058685,-500.0,0.0001652,2]
[354281741,1740393058694,-500.0,0.0001652,2]
[354281742,1740393058703,-500.0,0.0001652,2]
[354281743,1740393058712,-500.0,0.0001652,2]
[354281744,1740393058721,-500.0,0.0001652,2]
[354281745,1740393058730,-500.0,0.0001652,2]
[354281746,1740393058739,-156.70219814,0.0001652,2]
[354281747,1740393058749,-613.91,0.0001652,2]
[354281748,1740393058760,-500.0,0.0001652,2]
[354281749,1740393058770,-500.0,0.0001652,2]
[354281750,1740393058784,-500.0,0.0001652,2]
[354281751,1740393058794,-500.0,0.0001652,2]
[354281752,1740393058803,-441.31836534,0.0001652,2]
[354281753,1740393058812,-500.0,0.0001652,2]
[354281754,1740393058821,-151.0,0.0001652,2]
[354281755,1740393058830,-500.0,0.0001652,2]
[354281756,1740393058841,-500.0,0.0001652,2]
[354281757,1740393058850,-500.0,0.0001652,2]
[354281758,1740393058859,-151.0,0.0001652,2]
[354281759,1740393058869,-500.0,0.0001652,2]
[354281760,1740393058887,-522.13,0.0001652,2]
[354281761,1740393058897,-500.0,0.0001652,2]
[354281762,1740393058906,-500.0,0.0001652,2]
[354281763,1740393058916,-187.359585,0.0001652,2]
[354281764,1740393058925,-500.0,0.0001652,2]
[354281765,1740393058935,-500.0,0.0001652,2]
[354281766,1740393058944,-500.0,0.0001652,2]
[354281767,1740393058953,-151.0,0.0001652,2]
[354281768,1740393058962,-187.359585,0.0001652,2]
[354281769,1740393058971,-151.0,0.0001652,2]
[354281770,1740393058981,-151.0,0.0001652,2]
[354281771,1740393058990,-500.0,0.0001652,2]
[354281772,1740393059000,-151.0,0.0001652,2]
[354281773,1740393059010,-500.0,0.0001652,2]
[354281774,1740393059019,-500.0,0.0001652,2]
[354281775,1740393059028,-500.0,0.0001652,2]
[354281776,1740393059037,-500.0,0.0001652,2]
[354281777,1740393059048,-500.0,0.0001652,2]
[354281778,1740393059057,-500.0,0.0001652,2]
[354281779,1740393059066,-500.0,0.0001652,2]
[354281780,1740393059076,-151.0,0.0001652,2]
[354281781,1740393059085,-500.0,0.0001652,2]
[354281782,1740393059095,-829.52,0.0001652,2]
[354281783,1740393059104,-500.0,0.0001652,2]
[354281784,1740393059113,-500.0,0.0001652,2]
[354281785,1740393059122,-1000.0,0.0001652,2]
[354281786,1740393059131,-500.0,0.0001652,2]
[354281787,1740393059141,-614.79,0.0001652,2]
[354281788,1740393059150,-500.0,0.0001652,2]
[354281789,1740393059159,-500.0,0.0001652,2]
[354281790,1740393059168,-579.34,0.0001652,2]
[354281791,1740393059178,-500.0,0.0001652,2]
[354281792,1740393059187,-656.83,0.0001652,2]
[354281793,1740393059196,-229.613081,0.0001652,2]
[354281794,1740393059205,-500.0,0.0001652,2]
[354281795,1740393059214,-801.72,0.0001652,2]
[354281796,1740393059223,-500.0,0.0001652,2]
[354281797,1740393059232,-229.613081,0.0001652,2]
[354281798,1740393059241,-500.0,0.0001652,2]
[354281799,1740393059250,-500.0,0.0001652,2]
[354281800,1740393059260,-500.0,0.0001652,2]
[354281801,1740393059269,-778.26,0.0001652,2]
[354281802,1740393059279,-812.09,0.0001652,2]
[354281803,1740393059288,-563.47,0.0001652,2]
[354281804,1740393059298,-500.0,0.0001652,2]
[354281805,1740393059307,-500.0,0.0001652,2]
[354281806,1740393059316,-500.0,0.0001652,2]
[354281807,1740393059325,-500.0,0.0001652,2]
[354281808,1740393059334,-594.42,0.0001652,2]
[354281809,1740393059342,-500.0,0.0001652,2]
[354281810,1740393059352,-1017.59,0.0001652,2]
[354281811,1740393059360,-500.0,0.0001652,2]
[354281812,1740393059370,-500.0,0.0001652,2]
[354281813,1740393059379,-500.0,0.0001652,2]
[354281814,1740393059389,-1173.0,0.0001652,2]
[354281815,1740393059398,-500.0,0.0001652,2]
[354281816,1740393059407,-500.0,0.0001652,2]
[354281817,1740393059416,-500.0,0.0001652,2]
[354281818,1740393059425,-985.36,0.0001652,2]
[354281819,1740393059435,-500.0,0.0001652,2]
[354281820,1740393059444,-500.0,0.0001652,2]
[354281821,1740393059453,-714.1,0.0001652,2]
[354281822,1740393059462,-500.0,0.0001652,2]
[354281823,1740393059471,-500.0,0.0001652,2]
[354281824,1740393059481,-601.34,0.0001652,2]
[354281825,1740393059490,-500.0,0.0001652,2]
[354281826,1740393059499,-500.0,0.0001652,2]
[354281827,1740393059509,-500.0,0.0001652,2]
[354281828,1740393059519,-501.8995161,0.0001652,2]
[354281829,1740393059528,-1166.36,0.0001652,2]
[354281830,1740393059538,-500.0,0.0001652,2]
[354281831,1740393059548,-500.0,0.0001652,2]
[354281832,1740393059557,-500.0,0.0001652,2]
[354281833,1740393059566,-500.0,0.0001652,2]
[354281834,1740393059576,-655.58,0.0001652,2]
[354281835,1740393059585,-568.87,0.0001652,2]
[354281836,1740393059594,-500.0,0.0001652,2]
[354281837,1740393059603,-500.0,0.0001652,2]
[354281838,1740393059612,-500.0,0.0001652,2]
[354281839,1740393059622,-500.0,0.0001652,2]
[354281840,1740393059632,-500.0,0.0001652,2]
[354281841,1740393059641,-500.0,0.0001652,2]
[354281842,1740393059651,-500.0,0.0001652,2]
[354281843,1740393059660,-500.0,0.0001652,2]
[354281844,1740393059669,-500.0,0.0001652,2]
[354281845,1740393059678,-817.86,0.0001652,2]
[354281846,1740393059687,-500.0,0.0001652,2]
[354281847,1740393059698,-500.0,0.0001652,2]
[354281848,1740393059707,-500.0,0.0001652,2]
[354281849,1740393059716,-554.61,0.0001652,2]
[354281850,1740393059725,-500.0,0.0001652,2]
[354281851,1740393059735,-607.13,0.0001652,2]
[354281852,1740393059744,-299.279106,0.0001652,2]
[354281853,1740393059755,-500.0,0.0001652,2]
[354281854,1740393059764,-500.0,0.0001652,2]
[354281855,1740393059773,-587.42,0.0001652,2]
[354281856,1740393059783,-500.0,0.0001652,2]
[354281857,1740393059792,-500.0,0.0001652,2]
[354281858,1740393059801,-500.0,0.0001652,2]
[354281859,1740393059811,-500.0,0.0001652,2]
[354281860,1740393059820,-500.0,0.0001652,2]
[354281861,1740393059830,-500.0,0.0001652,2]
[354281862,1740393059841,-976.63,0.0001652,2]
[354281863,1740393059850,-500.0,0.0001652,2]
[354281864,1740393059861,-500.0,0.0001652,2]
[354281865,1740393059870,-500.0,0.0001652,2]
[354281866,1740393059880,-327.093108,0.0001652,2]
[354281867,1740393059890,-758.07,0.0001652,2]
[354281868,1740393059899,-500.0,0.0001652,2]
[354281869,1740393059907,-912.3,0.0001652,2]
[354281870,1740393059917,-500.0,0.0001652,2]
[354281871,1740393059926,-500.0,0.0001652,2]
[354281872,1740393059935,-966.44,0.0001652,2]
[354281873,1740393059944,-500.0,0.0001652,2]
[354281874,1740393059953,-571.99,0.0001652,2]
[354281875,1740393059963,-500.0,0.0001652,2]
[354281876,1740393059972,-583.89,0.0001652,2]
[354281877,1740393059981,-160.368063,0.0001652,2]
[354281878,1740393059991,-508.91,0.0001652,2]
[354281879,1740393060000,-500.0,0.0001652,2]
[354281880,1740393060010,-500.0,0.0001652,2]
[354281881,1740393060019,-500.0,0.0001652,2]
[354281882,1740393060028,-500.0,0.0001652,2]
[354281883,1740393060038,-579.70157506,0.0001652,2]
[354281884,1740393060048,-160.368063,0.0001652,2]
[354281885,1740393060058,-500.0,0.0001652,2]
[354281886,1740393060068,-500.0,0.0001652,2]
[354281887,1740393060078,-825.69,0.0001652,2]
[354281888,1740393060087,-500.0,0.0001652,2]
[354281889,1740393060097,-151.0,0.0001652,2]
[354281890,1740393060106,-793.11,0.0001652,2]
[354281891,1740393060115,-568.54,0.0001652,2]
[354281892,1740393060124,-500.0,0.0001652,2]
[354281893,1740393060134,-688.09,0.0001652,2]
[354281894,1740393060143,-500.0,0.0001652,2]
[354281895,1740393060153,-500.0,0.0001652,2]
[354281896,1740393060162,-500.0,0.0001652,2]
[354281897,1740393060171,-505.98883754,0.0001652,2]
[354281898,1740393060180,-827.28,0.0001652,2]
[354281899,1740393060190,-500.0,0.0001652,2]
[354281900,1740393060199,-500.0,0.0001652,2]
[354281901,1740393060209,-500.0,0.0001652,2]
[354281902,1740393060219,-645.72978499,0.0001652,2]
[354281903,1740393060229,-500.0,0.0001652,2]
[354281904,1740393060239,-500.0,0.0001652,2]
[354281905,1740393060249,-500.0,0.0001652,2]
[354281906,1740393060259,-642.85313547,0.0001652,2]
[354281907,1740393060269,-500.0,0.0001652,2]